Cogmind - Beta 15 @@@ ROGUE MODE // 2025.08.28 @ 19:07:25 Player: beans Result: Destroyed by Y-45 Defender with Beam Rifle Performance ------------- Evolutions (1) 500 Regions Visited (2) 400 Robots Destroyed (8) 40 Value Destroyed (89) 89 Prototype IDs (2) 40 Alien Tech Used (0) 0 Bonus (0) 0 TOTAL SCORE: 1069 Bonus ------- None Cogmind --------- Core Integrity 0/400 Matter 275/300 Energy 71/100 System Corruption 0% Temperature Cool (9) Movement Core (50) Location -9/Materials Parts ------- > --- POWER (1) -------- (None) > --- PROPULSION (2) --- (None) > --- UTILITY (4) ------ (None) > --- WEAPON (2) ------- (None) > --- INVENTORY (5) ---- Light Treads Light Treads Heat Sink Particle Charger Peak State ------------ > --- POWER ------------ (None) > --- PROPULSION ------- VTOL Module VTOL Module > --- UTILITY ---------- Improved Heat Sink Particle Charger > --- WEAPON ----------- (None) > --- INVENTORY -------- Light Treads Light Treads VTOL Module Heat Sink Small Laser [Rating: 10] Favorites ----------- Power Ion Engine Engine Ion Engine Propulsion Light Treads Treads Light Treads Flight Unit VTOL Module Utility Heat Sink Device Heat Sink Weapon Small Laser Energy Gun Small Laser Build | -11 -10 -9 ------- Run | Yrd Mat Mat Slots Evolved 2 | . . 2 Power . | . . . Propulsion . | . . . Utility 2 | . . 2 Weapon . | . . . Parts Attached 13 | 5 1 7 Power 1 | 1 . . Engine 1 | 1 . . Core . | . . . Reactor . | . . . Propulsion 5 | 2 . 3 Treads 2 | 2 . . Leg . | . . . Wheel . | . . . Hover . | . . . Flight 3 | . . 3 Utility 4 | . 1 3 Device 4 | . 1 3 Storage . | . . . Processor . | . . . Hackware . | . . . Protection . | . . . Artifact . | . . . Weapon 3 | 2 . 1 Energy Gun 3 | 2 . 1 Energy Cannon . | . . . Ballistic Gun . | . . . Ballistic Cannon . | . . . Launcher . | . . . Special Weapon . | . . . Impact Weapon . | . . . Slashing Weapon . | . . . Piercing Weapon . | . . . Special Melee Weapon . | . . . Unidentified Prototypes . | . . . Parts Lost 8 | . . 8 Power . | . . . Propulsion 3 | . . 3 Utility 2 | . . 2 Weapon 3 | . . 3 Highest Loss Streak 8 | . . 8 To Critical Strikes . | . . . Average Backups . | . . 2 Power . | . . . Propulsion . | . . 1 Utility . | . . . Weapon . | . . 1 Tool/Special . | . . . Unused Backups . | . . . Power . | . . . Propulsion . | . . . Utility . | . . . Weapon . | . . . Tool/Special . | . . . Average Slot Usage (%) 69 | . 81 44 Engine 11 | . 14 7 Treads 21 | . 28 7 Flight 1 | . . 5 Device 10 | . 10 10 Energy Gun 23 | . 28 14 Peak Build Rating 10 | 5 6 10 Average Rating 5 | 3 5 4 On Entrance 3 | . 5 6 Naked Turns 12 | . . 12 Heaviest Build 9 | 7 8 9 Greatest Support 40 | 40 40 40 Greatest Overweight (x) 2 | . . 2 Average Overweight (x) . | . . . Largest Inventory Capacity 5 | 5 5 5 Average Capacity 5 | 5 5 5 Most Carried 5 | 2 1 5 Average Carried . | . . 2 Final Capacity 5 | 5 5 5 Final Carried 4 | . . 4 Class Distribution -------------------- 94% | Mutant 5% | Sprinter Dominant Class ---------------- Mutant | -10/Materials Mutant | -9/Materials Resources | -11 -10 -9 ----------- Run | Yrd Mat Mat Matter Collected 285 | 194 66 25 Remotely . | . . . Salvage Created 217 | . 132 85 Parts 20 | . 14 6 Haulers Intercepted 1 | . 1 . Recyclers Shooed . | . . . Parts Field Recycled . | . . . Retrieved Matter . | . . . Parts Self-Destructed . | . . . Prevented . | . . . Kills | -11 -10 -9 ------- Run | Yrd Mat Mat Combat Hostiles Destroyed 5 | . 4 1 Guns 5 | . 4 1 Classes Destroyed 4 | . 3 1 Worker 2 | . 1 1 Hauler 1 | . 1 . Swarmer 4 | . 4 . Sentry 1 | . . 1 Best Kill Streak 3 | . 3 2 Combat Bots Only 3 | . 3 1 Max Kills in Single Turn 2 | . 2 1 Gunslinging . | . . . Exploded . | . . . Melee . | . . . Uniques/NPCs Destroyed . | . . . Combat | -11 -10 -9 -------- Run | Yrd Mat Mat Hostile Shots Fired 158 | . 19 139 Missed 62 | . 5 57 Hits 96 | . 14 82 Projectile 96 | . 14 82 Damage Taken 845 | . 99 746 Core 422 | . 21 401 Absorbed by Shields . | . . . Core Remaining (%) 95 | 100 91 . Volleys Fired 20 | 1 11 8 Largest 2 | 1 2 2 Hottest 80 | 40 80 80 Shots Fired 35 | 1 22 12 Gun 35 | 1 22 12 Cannon . | . . . Launcher . | . . . Special . | . . . Kinetic . | . . . Thermal 28 | 1 22 5 Explosive . | . . . Electromagnetic 7 | . . 7 Robot Hit Streak 6 | 1 6 5 Robot Miss Streak 3 | . 1 3 Penetration Max . | . . . Secondary Targets . | . . . Shots Hit Robots 20 | 1 13 6 Core Hits 11 | 1 7 3 Critical Kills . | . . . Critical Parts Destroyed . | . . . Critical Strikes . | . . . Melee Attacks . | . . . Impact . | . . . Slashing . | . . . Piercing . | . . . Sneak Attacks . | . . . Combat Hostiles . | . . . Follow-up Attacks . | . . . Damage Inflicted 216 | 11 152 53 Guns 216 | 11 152 53 Cannons . | . . . Explosions . | . . . Melee . | . . . Ramming . | . . . Kinetic . | . . . Thermal 184 | 11 152 21 Explosive . | . . . Electromagnetic 32 | . . 32 Impact . | . . . Slashing . | . . . Piercing . | . . . Highest Corruption . | . . . Average Corruption . | . . . Corruption Purged . | . . . Corruption Blocked . | . . . Overload Shots . | . . . Overflow Damage . | . . . Projectiles . | . . . Explosions . | . . . Melee . | . . . Knockbacks . | . . . Impact . | . . . Kinetic . | . . . Secondary . | . . . Self-Inflicted Damage . | . . . Shots . | . . . Rammed . | . . . Targets Rammed . | . . . Kicked . | . . . Crushed . | . . . Highest Temperature 36 | . 36 3 Average Temperature 13 | . 13 3 Received Heat Transfer 75 | . 9 66 Siege Activations . | . . . Martial Activations . | . . . Shielding Activations . | . . . Robots Disrupted . | . . . Combat Hostiles . | . . . Robots Corrupted . | . . . Combat Hostiles . | . . . Parts Fried . | . . . Impact Corruptions . | . . . Robots Melted . | . . . Combat Hostiles . | . . . Parts Melted 1 | . . 1 Heat Transferred 425 | 25 350 50 Parts Sabotaged . | . . . Parts Stolen . | . . . Parts Stripped . | . . . Power Chain Reactions . | . . . Alert | -11 -10 -9 ------- Run | Yrd Mat Mat Maximum Alert Level . | . . . Low Security (%) 100 | 100 100 100 Level 1 . | . . . Level 2 . | . . . Level 3 . | . . . Level 4 . | . . . Level 5 . | . . . High Security . | . . . Max Security . | . . . Peak Influence 60 | . 60 50 Initial . | . . . Average 9 | . 12 4 Influence Increases 162 | . 112 50 Destroy 0b10 Robot/C 100 | . 80 20 Destroy 0b10 Robot/NC 15 | . 10 5 Destroy Leader 32 | . 22 10 Partial Spotted 15 | . . 15 Influence Decreases 162 | . 112 50 Time Decay 132 | . 112 20 Lost Part 30 | . . 30 Squads Dispatched 3 | . 1 2 Investigation 1 | . 1 . Extermination . | . . . Reinforcement 2 | . . 2 Assault . | . . . Garrison . | . . . Intercept . | . . . Searches Triggered . | . . . Construction Impeded . | . . . Haulers Reinforced . | . . . Active Scanning Responses . | . . . Cargo Convoy Interrupts . | . . . Stealth | -11 -10 -9 --------- Run | Yrd Mat Mat Distress Signals 1 | . . 1 Communications Jammed . | . . . Distress Signals . | . . . Times Spotted 19 | . 4 15 Peak Tracking Total 11 | . 3 11 Tactical Retreats . | . . . Traps | -11 -10 -9 ------- Run | Yrd Mat Mat Traps Triggered 2 | . . 2 Indirectly . | . . . Trap Hack Attempts . | . . . Triggered . | . . . Disarmed . | . . . Reprogrammed . | . . . Reused . | . . . Traps Extracted . | . . . Installed . | . . . Triggered . | . . . Machines | -11 -10 -9 ---------- Run | Yrd Mat Mat Machines Disabled . | . . . Max in Single Turn . | . . . Machines Repaired . | . . . Machines Dismantled . | . . . Machines Sabotaged . | . . . Overloaded Fab Kills . | . . . Hacking | -11 -10 -9 --------- Run | Yrd Mat Mat Machines Accessed 1 | . 1 . Terminals 1 | . 1 . Fabricators . | . . . Repair Stations . | . . . Recycling Units . | . . . Scanalyzers . | . . . Garrison Access . | . . . Total Hacks 2 | . 2 . Successful 1 | . 1 . Failed 1 | . 1 . Catastrophic . | . . . Database Lockouts . | . . . Manual 1 | . 1 . Terminals 2 | . 2 . Fabricators . | . . . Repair Stations . | . . . Recycling Units . | . . . Scanalyzers . | . . . Garrison Access . | . . . Terminal Hacks 1 | . 1 . Prototype ID Bank 1 | . 1 . Fabricator Hacks . | . . . Repair Station Hacks . | . . . Recycling Unit Hacks . | . . . Scanalyzer . | . . . Garrison Access Hacks . | . . . Unauthorized Hacks . | . . . Terminals . | . . . Fabricators . | . . . Repair Stations . | . . . Recycling Units . | . . . Scanalyzers . | . . . Garrison Access . | . . . Data Cores Recovered . | . . . Used . | . . . Hacking Detections 1 | . 1 . Full Trace Events . | . . . Feedback Events . | . . . Feedback Blocked . | . . . Robot Schematics Acquired . | . . . Robots Built . | . . . Authchips . | . . . Time . | . . . Total Robot Build Rating . | . . . Part Schematics Acquired . | . . . Parts Built . | . . . Authchips . | . . . Time . | . . . Total Part Build Rating . | . . . Parts Repaired . | . . . Time . | . . . Parts Recycled . | . . . Recycled Matter . | . . . Retrieved Matter . | . . . Retrieved Components . | . . . Parts Scanalyzed . | . . . Part Schematics Acquired . | . . . Parts Damaged . | . . . Bothacking | -11 -10 -9 ------------ Run | Yrd Mat Mat Used RIF Installer . | . . . Robots Hacked . | . . . Non-combat . | . . . Combat . | . . . Robot Hacks Applied . | . . . Relay Couplers Released . | . . . Fabnet Peak Effective % . | . . . Robots Rewired . | . . . Allies Hacked . | . . . Hacks Repelled . | . . . Allies | -11 -10 -9 -------- Run | Yrd Mat Mat Total Allies . | . . . Largest Group . | . . . Highest-Rated Group . | . . . Highest-Rated Ally . | . . . Total Orders . | . . . Ally Attacks . | . . . Total Damage . | . . . Kills . | . . . Allies Corrupted . | . . . Allies Melted . | . . . Intel | -11 -10 -9 ------- Run | Yrd Mat Mat Active Infowar (turns) . | . . . Robot Analysis Total . | . . . Derelict Logs Recovered . | . . . Drone Launches . | . . . Drone Recoveries . | . . . Exploration | -11 -10 -9 ------------- Run | Yrd Mat Mat Turns Passed 754 | 80 458 216 Spaces Moved 516 | 56 264 196 Core 90 | 19 . 71 Treads 340 | 37 264 39 Legs . | . . . Wheels . | . . . Hover . | . . . Flight 86 | . . 86 Fastest Speed 32 | 50 160 32 Average Speed 126 | 122 160 82 Slowest Speed 160 | 160 160 160 Overloaded Moves . | . . . Propulsion Burnouts . | . . . Robots Hopped . | . . . Potential Cave-ins . | . . . Cave-ins Triggered . | . . . Exploration Rate (%) 23 | 3 45 21 Regions Visited 2 Branch Regions . Pre-discovered Areas . | . . . Known Exits Taken . | . . . Unknown Exits Taken 2 | 1 1 . Scrap Searched . | . . . Spaces Dug . | . . . Terrain Destroyed . | . . . Melee . | . . . Projectile . | . . . AOE . | . . . Terrain Rammed . | . . . Walls Destroyed . | . . . Machines Disabled . | . . . Actions | -11 -10 -9 --------- Run | Yrd Mat Mat Total 582 | 66 278 238 Wait 15 | . 2 13 Move 514 | 55 263 196 Hop . | . . . Pick Up 15 | 5 1 9 Fast Attach 2 | . . 2 Attach 11 | 5 1 5 Detach 1 | . . 1 Swap 2 | . . 2 Drop 2 | . . 2 Fire 20 | 1 11 8 Melee . | . . . Ram . | . . . Kick . | . . . Crush . | . . . Escape Stasis . | . . . Rewire . | . . . Trap . | . . . Miscellaneous . | . . . Route ------- -11/Scrapyard -10/Materials (discovered 3 exits: [*Mat x2] / [*Min]) -9/Materials History --------- Turn | Location | Event 5 | -11/Scrapyard | Discovered new exit (range 16) 81 | -11/Scrapyard | Entered Materials 277 | -10/Materials | Discovered new exit (range 10) 303 | -10/Materials | Build established: Mutant 381 | -10/Materials | Discovered new exit (range 5) 443 | -10/Materials | Discovered new exit (range 16) 539 | -10/Materials | Entered another Materials area 539 | -9/Materials | Evolved 2 slots: Utility x2 732 | -9/Materials | Core integrity fell below 50% 741 | -9/Materials | Core integrity fell below 20% 755 | -9/Materials | Destroyed by Y-45 Defender with Beam Rifle Last Messages --------------- Acquired Imp. Heat Sink. U-05 Engineer works on Matter Pump. Acquired Particle Charger. U-05 Engineer works on Matter Pump. Dropped VTOL Module. U-05 Engineer works on Matter Pump. VTOL Module destroyed. U-05 Engineer works on Matter Pump. Particle Charger destroyed. U-05 Engineer works on Matter Pump. VTOL Module destroyed. U-05 Engineer completes Matter Pump. Imp. Heat Sink destroyed. Acquired Particle Charger. Acquired VTOL Module. Y-45 Defender destroyed. Matter Pump comes online. Sml. Laser destroyed. M-13 Machinist repairs S-10 Pest. VTOL Module destroyed. Map ----- +----------------------------------------------------+ | ???????????????????????????????????????????? | | ???????????????????????????????????????????? | | ???????????????????????????????????????????? | | ???????????????????????????????????????????? | | ???????????????????????????????????????????? | | ???????????????????????????????????????????? | | ???????????????????????????????????????????? | | ???????????????????????????????????????????? | | ???????????????????????????????????????????? | | ???????????????????????????????????????????? | | ???????????????????????????????????????????? | | ?????????????????? ????????????????????????? | | ?????????????????# ????????????????????????? | | ????????????????? ????????????????????????? | | ????????????????? t????????????????????????? | | ????????????????? Y????????????????????????? | | ?????????????????# ????????????????????????? | | ?????????????????# ????????????????????????? | | ?????????????????# ###?????????????????????? | | ?????????????????# #?????????????????????? | | ?????????????????# +?????????????????????? | | ?????????????????# #?????????????????????? | | ?????????????????+ #?????????????????????? | | ?????????????????# #?????????????????????? | | ?????????????????# #?????????????????????? | | ?????????????????# @ #?????????????????????? | | ?????????????????# #?????????????????????? | | ??????????????#### #?????????????????????? | | ?????????????##! #?????????????????????? | | ?????????????#! #?????????????????????? | | ?????????????#! #?????????????????????? | | ?????????????#! #?????????????????????? | | ?????????????#! #?????????????????????? | | ?????????????##! #?????????????????????? | | ??????????????####o #?????########????????? | | ?????????????????# ss#?????#==!!! #????????? | | ?????????????????# r#?????#== ! !#????????? | | ?????????????????# s#####?# #????????? | | ?????????????????# #"T"### ##????????? | | ?????????????????# u #?????????? | | ?????????????????# t #?????????? | | ?????????????????# """ """ ![ #?????????? | | ?????????????????# """ """!%* #?????????? | | ?????????????????+ """ """ [ #?????????? | | ?????????????????# #?????????? | | ?????????????????# #?????????? | | ?????????????????#/!! """ #?????????? | | ?????????????????#/! """ #?????????? | | ?????????????????#/! """ #?????????? | | ?????????????????# #?????????? | +----------------------------------------------------+ Best States ------------- Heat Dissipation 42 Energy Generation 10 Energy Capacity 250 Matter Stores 300 Matter Capacity 300 Sight Range 16 Terrain Scan Density 10 Evasion (%) 63 Recoil Reduction 2 Item Schematics ----------------- None Robot Schematics ------------------ None Fabricated ------------ Nothing Repaired ---------- Nothing Alien Tech Used ----------------- None Achievements -------------- None Challenges ------------ None Game ------ Seed DispersionRecoilRailcannon Manual? 0 Play Time 00:06:42 Cumulative 107.1 hours Start 2025.08.28 @ 19:03:06 End 2025.08.28 @ 19:07:25 Sessions 1 Manual Loads 0 Difficulty Rogue Special Mode None Game No. 398 Rogue 398 Adventurer 0 Explorer 0 Win Type - Total 0 Types 0/0/0/0/0/0/0/0/0/0 Lore% 43 Gallery% 43 Achievement% 31 Wizard Run 0 Options --------- Layout 2 ASCII 0 Keyboard 0 Movement Mouse Keybinds 0 Fullscreen 2 Font 24/Smallcaps Map View 50x44 Zoom Use 0% Tactical HUD 0 Map Filters NONE Filters NONE Steam 1 RUN: 4eeb9897-36b7-4a19-87b4-6efea38cfb40